fUST/lending_fUST_20250221
["ID","MTS","AMOUNT","RATE_DAILY","PERIOD"]
[353844655,1740089456054,-1489.39,0.00014438,2]
[353844656,1740089456067,-3579.38,0.00014438,2]
[353844657,1740089456077,-2055.75,0.00014438,2]
[353844658,1740089456087,-53142.99,0.00014438,2]
[353844659,1740089456096,-4841.94,0.00014438,2]
[353844660,1740089456106,-501.11510411,0.00014438,2]
[353844661,1740089456116,-2766.47,0.00014438,2]
[353844662,1740089456125,-651.81,0.00014438,2]
[353844663,1740089456135,-782.52,0.00014438,2]
[353844664,1740089456145,-500.0,0.00014438,2]
[353844665,1740089456155,-9566.41,0.00014438,2]
[353844666,1740089456164,-4875.79,0.00014438,2]
[353844667,1740089456174,-500.0,0.00014438,2]
[353844668,1740089456183,-839.82,0.00014438,2]
[353844669,1740089456193,-1342.97,0.00014438,2]
[353844670,1740089456204,-4944.72,0.00014438,2]
[353844671,1740089456213,-694.31,0.00014438,2]
[353844672,1740089456223,-905.08,0.00014438,2]
[353844673,1740089456232,-771.62,0.00014438,2]
[353844674,1740089456242,-2780.68,0.00014438,2]
[353844675,1740089456251,-597.78,0.00014438,2]
[353844676,1740089456261,-1363.5,0.00014438,2]
[353844677,1740089456271,-562.63,0.00014438,2]
[353844678,1740089456280,-2880.53,0.00014438,2]
[353844679,1740089456289,-1738.34,0.00014438,2]
[353844680,1740089456299,-819.11,0.00014438,2]
[353844681,1740089456309,-769.36,0.00014438,2]
[353844682,1740089456318,-500.0,0.00014438,2]
[353844683,1740089456328,-1497.72,0.00014438,2]
[353844684,1740089456338,-500.0,0.00014438,2]
[353844685,1740089456348,-815.07,0.00014438,2]
[353844686,1740089456358,-970.94,0.00014438,2]
[353844687,1740089456367,-24177.39,0.00014438,2]
[353844688,1740089456377,-519.32,0.00014438,2]
[353844689,1740089456387,-8501.64,0.00014438,2]
[353844690,1740089456396,-537.36,0.00014438,2]
[353844691,1740089456406,-2996.07,0.00014438,2]
[353844692,1740089456416,-826.46,0.00014438,2]
[353844693,1740089456425,-693.73,0.00014438,2]
[353844694,1740089456435,-916.35,0.00014438,2]
[353844695,1740089456445,-1134.13,0.00014438,2]
[353844696,1740089456454,-2654.74,0.00014438,2]
[353844697,1740089456464,-537.56,0.00014438,2]
[353844698,1740089456473,-865.0,0.00014438,2]
[353844699,1740089456483,-9490.95,0.00014438,2]
[353844700,1740089456492,-500.0,0.00014438,2]
[353844701,1740089456501,-2637.96,0.00014438,2]
[353844702,1740089456511,-1106.86,0.00014438,2]
[353844703,1740089456520,-5265.89,0.00014438,2]
[353844704,1740089456529,-541.66,0.00014438,2]
[353844705,1740089456539,-4153.26,0.00014438,2]
[353844706,1740089456548,-500.0,0.00014438,2]
[353844707,1740089456558,-590.2,0.00014438,2]
[353844708,1740089456568,-700.0,0.00014438,2]
[353844709,1740089456577,-160.0,0.00014482,5]
[353844710,1740089456587,-70205.55338664,0.000145,5]
[353844711,1740089456596,-1250443.42714898,0.000145,5]
[353844712,1740089456772,-1539.77,0.00013698,2]
[353844713,1740089456782,-1539.77,0.0001378,2]
[353844714,1740089456792,-1539.77,0.00013863,2]
[353844715,1740089456802,-1539.77,0.00013945,2]
[353844716,1740089456812,-1539.77,0.00014027,2]
[353844717,1740089456822,-1539.77,0.00014109,2]
[353844718,1740089456831,-1082793.48138899,0.000145,5]
[353844719,1740089456843,-462.33353198,0.000145,5]
[353844720,1740089457119,-559.57270715,0.00014191,2]
[353844721,1740089457131,-980.19729285,0.00014191,2]
[353844722,1740089457142,-1539.77,0.00014273,2]
[353844723,1740089457152,-1539.77,0.00014356,2]
[353844724,1740089457162,-1539.77,0.00014438,2]
[353844725,1740089457174,-42957.56500398,0.000145,5]
[353844726,1740089457313,-1802.4249918,0.000145,5]
[353844727,1740089457359,-7364.7,0.000145,5]
[353844732,1740089712120,313.543482,9.041e-05,2]
[353844735,1740089893543,151.0,0.00018,120]
[353844737,1740090459373,3211.84864179,0.00018117,120]
[353844738,1740090460981,264.84029575,0.00018117,120]
[353844739,1740090464617,3668.58074218,0.00018117,120]
[353844742,1740090490591,3256.21822648,0.00018117,120]
[353844743,1740090496429,898.00388273,0.00018117,120]
[353844744,1740090498799,2454.25611839,0.00018117,120]
[353844745,1740090506240,240.82074905,0.00018117,120]
[353844746,1740090508061,1003.83864024,0.00018117,120]
[353844747,1740090508534,1064.15054927,0.00018117,90]
[353844748,1740090508605,607.26114991,0.00018117,120]
[353844749,1740090508823,2000.0,0.00018117,120]
[353844750,1740090509445,1077.0250764,0.00018117,120]
[353844751,1740090509844,931.86830309,0.00018117,120]
[353844752,1740090510517,1032.88952746,0.00018117,120]
[353844753,1740090511556,268.934797,0.00018117,120]
[353844754,1740090512231,1234.50482522,0.00018117,120]
[353844755,1740090512669,1332.77563679,0.00018117,120]
[353844756,1740090512863,437.73686461,0.00018117,120]
[353844767,1740090632487,-744.67164941,0.00012606,2]
[353844768,1740090632497,-261.2219968,0.00012666,2]
[353844769,1740090632507,-744.67164941,0.00012706,2]
[353844770,1740090632517,-300.0,0.00012711,2]
[353844771,1740090632528,-24900.0,0.00012712,2]
[353844772,1740090632538,-744.67164941,0.00012806,2]
[353844773,1740090632547,-744.67164941,0.00012906,2]
[353844774,1740090632556,-744.67164941,0.00013006,2]
[353844775,1740090632566,-700.0,0.00013068,2]
[353844776,1740090632575,-744.67164941,0.00013106,2]
[353844777,1740090632585,-744.67164941,0.00013206,2]
[353844778,1740090632595,-744.67164941,0.00013306,2]
[353844779,1740090632603,-744.67164941,0.00013406,2]
[353844780,1740090632613,-744.67164941,0.00013506,2]
[353844781,1740090632622,-3000.0,0.00013598,2]
[353844782,1740090632631,-744.67164941,0.00013606,2]
[353844783,1740090632641,-500.0,0.00013673,2]
[353844784,1740090632650,-500.0,0.00013673,2]
[353844785,1740090632660,-500.0,0.00013673,2]
[353844786,1740090632670,-500.0,0.00013673,2]
[353844787,1740090632679,-267.43880044,0.00013673,2]
[353844788,1740090632689,-500.0,0.00013673,2]
[353844789,1740090632699,-500.0,0.00013673,2]
[353844790,1740090632708,-537.91021071,0.00013673,2]
[353844791,1740090632717,-160.83889272,0.00013673,2]
[353844792,1740090632726,-500.0,0.00013673,2]
[353844793,1740090632736,-500.0,0.00013673,2]
[353844794,1740090632745,-270.46361612,0.00013673,2]
[353844795,1740090632755,-158.77168465,0.00013673,2]
[353844796,1740090632764,-401.4540213,0.00013673,2]
[353844797,1740090632773,-250.8666248,0.00013673,2]
[353844798,1740090632783,-500.0,0.00013673,2]
[353844799,1740090632792,-403.44345338,0.00013673,2]
[353844800,1740090632802,-500.0,0.00013673,2]
[353844801,1740090632812,-386.01861773,0.00013673,2]
[353844802,1740090632821,-500.0,0.00013673,2]
[353844803,1740090632832,-500.0,0.00013673,2]
[353844804,1740090632842,-151.0,0.0001369,2]
[353844805,1740090632851,-500.0,0.00013697,2]
[353844806,1740090632861,-500.0,0.00013697,2]
[353844807,1740090632871,-500.0,0.00013697,2]
[353844808,1740090632881,-500.0,0.00013697,2]
[353844809,1740090632890,-500.0,0.00013697,2]
[353844810,1740090632899,-240.04408347,0.00013697,2]
[353844811,1740090632909,-500.0,0.00013697,2]
[353844812,1740090632918,-500.0,0.00013697,2]
[353844813,1740090632928,-500.0,0.00013697,2]
[353844814,1740090632937,-500.0,0.00013697,2]
[353844815,1740090632946,-500.0,0.00013697,2]
[353844816,1740090632955,-640.26264352,0.00013697,2]
[353844817,1740090632965,-500.0,0.00013697,2]
[353844818,1740090632974,-500.0,0.00013697,2]
[353844819,1740090632983,-500.0,0.00013697,2]
[353844820,1740090632993,-500.0,0.00013697,2]
[353844821,1740090633002,-500.0,0.00013697,2]
[353844822,1740090633013,-500.0,0.00013697,2]
[353844823,1740090633023,-500.0,0.00013697,2]
[353844824,1740090633033,-500.0,0.00013698,2]
[353844825,1740090633043,-506.69217086,0.00013698,2]
[353844826,1740090633053,-500.0,0.00013698,2]
[353844827,1740090633063,-500.0,0.00013698,2]
[353844828,1740090633073,-500.0,0.00013698,2]
[353844829,1740090633083,-500.0,0.00013698,2]
[353844830,1740090633093,-500.0,0.00013698,2]
[353844831,1740090633103,-500.0,0.00013698,2]
[353844832,1740090633113,-500.0,0.00013698,2]
[353844833,1740090633122,-500.0,0.00013698,2]
[353844834,1740090633132,-500.0,0.00013698,2]
[353844835,1740090633142,-500.0,0.00013698,2]
[353844836,1740090633152,-606.17,0.00013698,2]
[353844837,1740090633162,-500.0,0.00013698,2]
[353844838,1740090633173,-500.0,0.00013698,2]
[353844839,1740090633184,-500.0,0.00013698,2]
[353844840,1740090633195,-500.0,0.00013698,2]
[353844841,1740090633204,-500.0,0.00013698,2]
[353844842,1740090633214,-500.0,0.00013698,2]
[353844843,1740090633226,-500.0,0.00013698,2]
[353844844,1740090633236,-505.62645514,0.00013698,2]
[353844845,1740090633246,-569.51056396,0.00013698,2]
[353844846,1740090633255,-498.10411139,0.00013698,2]
[353844847,1740090633265,-500.0,0.00013698,2]
[353844848,1740090633275,-500.0,0.00013698,2]
[353844849,1740090633284,-500.0,0.00013698,2]
[353844850,1740090633294,-500.0,0.00013698,2]
[353844851,1740090633303,-500.0,0.00013698,2]
[353844852,1740090633312,-500.0,0.00013698,2]
[353844853,1740090633322,-500.0,0.00013698,2]
[353844854,1740090633332,-500.0,0.00013698,2]
[353844855,1740090633341,-500.0,0.00013698,2]
[353844856,1740090633351,-500.0,0.00013698,2]
[353844857,1740090633360,-500.0,0.00013698,2]
[353844858,1740090633370,-348.09438548,0.00013698,2]
[353844859,1740090633378,-504.1575931,0.00013698,2]
[353844860,1740090633387,-500.0,0.00013698,2]
[353844861,1740090633395,-500.0,0.00013698,2]
[353844862,1740090633405,-500.0,0.00013698,2]
[353844863,1740090633414,-500.0,0.00013698,2]
[353844864,1740090633423,-500.0,0.00013698,2]
[353844865,1740090633433,-500.0,0.00013698,2]
[353844866,1740090633442,-500.0,0.00013698,2]
[353844867,1740090633460,-500.0,0.00013698,2]
[353844868,1740090633619,-500.0,0.00013698,2]
[353844869,1740090633629,-500.0,0.00013698,2]
[353844870,1740090633639,-500.0,0.00013698,2]
[353844871,1740090633649,-382.87233671,0.00013698,2]
[353844872,1740090633659,-500.0,0.00013698,2]
[353844873,1740090633669,-651.13,0.00013698,2]
[353844874,1740090633678,-501.19485789,0.00013698,2]
[353844875,1740090633687,-500.0,0.00013698,2]
[353844876,1740090633697,-500.0,0.00013698,2]
[353844877,1740090633707,-500.0,0.00013698,2]
[353844878,1740090633716,-500.0,0.00013698,2]
[353844879,1740090633725,-500.0,0.00013698,2]
[353844880,1740090633734,-501.11471856,0.00013698,2]
[353844881,1740090633743,-500.0,0.00013698,2]
[353844882,1740090633752,-523.56564249,0.00013698,2]
[353844883,1740090633762,-500.0,0.00013698,2]
[353844884,1740090633771,-500.0,0.00013698,2]
[353844885,1740090633781,-181.85589958,0.00013698,2]
[353844886,1740090633791,-500.0,0.00013698,2]
[353844887,1740090633800,-500.0,0.00013698,2]
[353844888,1740090633810,-500.0,0.00013698,2]
[353844889,1740090633819,-500.0,0.00013698,2]
[353844890,1740090633828,-500.0,0.00013698,2]
[353844891,1740090633837,-500.0,0.00013698,2]
[353844892,1740090633845,-500.0,0.00013698,2]
[353844893,1740090633854,-500.0,0.00013698,2]
[353844894,1740090633862,-500.0,0.00013698,2]
[353844895,1740090633872,-500.0,0.00013698,2]
[353844896,1740090633882,-500.0,0.00013698,2]
[353844897,1740090633893,-500.0,0.00013698,2]
[353844898,1740090633904,-500.0,0.00013698,2]
[353844899,1740090633914,-963.87,0.00013698,2]
[353844900,1740090633923,-500.90210763,0.00013698,2]
[353844901,1740090633933,-500.0,0.00013698,2]
[353844902,1740090633942,-500.0,0.00013698,2]
[353844903,1740090633952,-502.95854332,0.00013698,2]
[353844904,1740090633961,-500.0,0.00013698,2]
[353844905,1740090633972,-500.0,0.00013698,2]
[353844906,1740090633987,-500.0,0.00013698,2]
[353844907,1740090633997,-500.0,0.00013698,2]
[353844908,1740090634007,-2136.02,0.00013698,2]
[353844909,1740090634017,-500.0,0.00013698,2]
[353844910,1740090634026,-500.0,0.00013698,2]
[353844911,1740090634036,-500.0,0.00013698,2]
[353844912,1740090634046,-500.0,0.00013698,2]
[353844913,1740090634055,-500.48628038,0.00013698,2]
[353844914,1740090634065,-506.46097388,0.00013698,2]
[353844915,1740090634074,-500.0,0.00013698,2]
[353844916,1740090634084,-500.0,0.00013698,2]
[353844917,1740090634094,-500.0,0.00013698,2]
[353844918,1740090634103,-500.0,0.00013698,2]
[353844919,1740090634112,-500.0,0.00013698,2]
[353844920,1740090634122,-500.0,0.00013698,2]
[353844921,1740090634131,-1200.25,0.00013698,2]
[353844922,1740090634140,-500.0,0.00013698,2]
[353844923,1740090634150,-500.0,0.00013698,2]
[353844924,1740090634159,-500.0,0.00013698,2]
[353844925,1740090634168,-500.0,0.00013698,2]
[353844926,1740090634178,-571.45,0.00013698,2]
[353844927,1740090634187,-500.0,0.00013698,2]
[353844928,1740090634196,-500.0,0.00013698,2]
[353844929,1740090634207,-942.87,0.00013698,2]
[353844930,1740090634216,-237.14133816,0.00013698,2]
[353844931,1740090634226,-500.0,0.00013698,2]
[353844932,1740090634235,-500.0,0.00013698,2]
[353844933,1740090634245,-500.0,0.00013698,2]
[353844934,1740090634254,-500.0,0.00013698,2]
[353844935,1740090634263,-500.0,0.00013698,2]
[353844936,1740090634273,-500.0,0.00013698,2]
[353844937,1740090634283,-500.0,0.00013698,2]
[353844938,1740090634292,-500.0,0.00013698,2]
[353844939,1740090634301,-500.0,0.00013698,2]
[353844940,1740090634310,-500.0,0.00013698,2]
[353844941,1740090634319,-500.0,0.00013698,2]
[353844942,1740090634328,-1464.15,0.00013698,2]
[353844943,1740090634338,-502.7453557,0.00013698,2]
[353844944,1740090634349,-500.0,0.00013698,2]
[353844945,1740090634358,-500.0,0.00013698,2]
[353844946,1740090634368,-500.0,0.00013698,2]
[353844947,1740090634378,-500.0,0.00013698,2]
[353844948,1740090634387,-822.38,0.00013698,2]
[353844949,1740090634396,-944.8,0.00013698,2]
[353844950,1740090634407,-500.0,0.00013698,2]
[353844951,1740090634416,-500.0,0.00013698,2]
[353844952,1740090634424,-500.0,0.00013698,2]
[353844953,1740090634433,-500.0,0.00013698,2]
[353844954,1740090634442,-877.55,0.00013698,2]
[353844955,1740090634457,-500.0,0.00013698,2]
[353844956,1740090634466,-500.0,0.00013698,2]
[353844957,1740090634476,-1006.27,0.00013698,2]
[353844958,1740090634485,-500.0,0.00013698,2]
[353844959,1740090634495,-500.0,0.00013698,2]
[353844960,1740090634505,-500.0,0.00013698,2]
[353844961,1740090634515,-500.0,0.00013698,2]
[353844962,1740090634526,-906.7,0.00013698,2]
[353844963,1740090634536,-500.0,0.00013698,2]
[353844964,1740090634545,-500.0,0.00013698,2]
[353844965,1740090634554,-500.0,0.00013698,2]
[353844966,1740090634564,-500.0,0.00013698,2]
[353844967,1740090634573,-500.0,0.00013698,2]
[353844968,1740090634581,-500.0,0.00013698,2]
[353844969,1740090634590,-978.65,0.00013698,2]
[353844970,1740090634599,-500.0,0.00013698,2]
[353844971,1740090634609,-505.74745093,0.00013698,2]
[353844972,1740090634618,-633.0,0.00013698,2]
[353844973,1740090634627,-581.54,0.00013698,2]
[353844974,1740090634636,-500.0,0.00013698,2]
[353844975,1740090634645,-500.0,0.00013698,2]
[353844976,1740090634655,-500.0,0.00013698,2]
[353844977,1740090634664,-500.0,0.00013698,2]
[353844978,1740090634673,-786.26,0.00013698,2]
[353844979,1740090634682,-500.0,0.00013698,2]
[353844980,1740090634691,-500.0,0.00013698,2]
[353844981,1740090634701,-500.0,0.00013698,2]
[353844982,1740090634710,-500.0,0.00013698,2]
[353844983,1740090634719,-546.36,0.00013698,2]
[353844984,1740090634729,-500.0,0.00013698,2]
[353844985,1740090634738,-500.0,0.00013698,2]
[353844986,1740090634748,-590.78002538,0.00013698,2]
[353844987,1740090634757,-500.0,0.00013698,2]
[353844988,1740090634766,-500.0,0.00013698,2]
[353844989,1740090634775,-817.41,0.00013698,2]
[353844990,1740090634784,-500.0,0.00013698,2]
[353844991,1740090634794,-1738.99,0.00013698,2]
[353844992,1740090634803,-1475.64,0.00013698,2]
[353844993,1740090634812,-1116.83,0.00013698,2]
[353844994,1740090634821,-500.0,0.00013698,2]
[353844995,1740090634830,-582.64,0.00013698,2]
[353844996,1740090634839,-533.30308693,0.00013698,2]
[353844997,1740090634848,-500.0,0.00013698,2]
[353844998,1740090634857,-241.75461406,0.00013698,2]
[353844999,1740090634866,-500.0,0.00013698,2]
[353845000,1740090634876,-629.69853506,0.00013698,2]
[353845001,1740090634885,-500.0,0.00013698,2]
[353845002,1740090634895,-500.0,0.00013698,2]
[353845003,1740090634904,-500.0,0.00013698,2]
[353845004,1740090634914,-500.0,0.00013698,2]
[353845005,1740090634923,-500.0,0.00013698,2]
[353845006,1740090634932,-500.0,0.00013698,2]
[353845007,1740090634941,-500.81122575,0.00013698,2]
[353845008,1740090634952,-840.08,0.00013698,2]
[353845009,1740090634962,-508.91,0.00013698,2]
[353845010,1740090634972,-500.0,0.00013698,2]
[353845011,1740090634981,-500.0,0.00013698,2]
[353845012,1740090634991,-500.0,0.00013698,2]
[353845013,1740090635001,-500.0,0.00013698,2]
[353845014,1740090635011,-500.0,0.00013698,2]
[353845015,1740090635020,-500.0,0.00013698,2]
[353845016,1740090635029,-500.88276332,0.00013698,2]
[353845017,1740090635039,-500.0,0.00013698,2]
[353845018,1740090635050,-813.03,0.00013698,2]
[353845019,1740090635059,-500.0,0.00013698,2]
[353845020,1740090635068,-500.0,0.00013698,2]
[353845021,1740090635078,-500.0,0.00013698,2]
[353845022,1740090635087,-500.0,0.00013698,2]
[353845023,1740090635096,-500.0,0.00013698,2]
[353845024,1740090635106,-500.0,0.00013698,2]
[353845025,1740090635115,-500.0,0.00013698,2]
[353845026,1740090635124,-500.0,0.00013698,2]
[353845027,1740090635133,-502.93999454,0.00013698,2]
[353845028,1740090635143,-500.0,0.00013698,2]
[353845029,1740090635152,-455.59426665,0.00013698,2]
[353845030,1740090635161,-501.38868866,0.00013698,2]
[353845031,1740090635171,-608.19,0.00013698,2]
[353845032,1740090635180,-500.0,0.00013698,2]
[353845033,1740090635190,-209.02848209,0.00013698,2]
[353845034,1740090635199,-500.0,0.00013698,2]
[353845035,1740090635209,-500.0,0.00013698,2]
[353845036,1740090635218,-500.0,0.00013698,2]
[353845037,1740090635227,-500.0,0.00013698,2]
[353845038,1740090635236,-261.31716949,0.00013698,2]
[353845039,1740090635245,-690.16,0.00013698,2]
[353845040,1740090635254,-500.0,0.00013698,2]
[353845041,1740090635263,-500.0,0.00013698,2]
[353845042,1740090635273,-1005.5,0.00013698,2]
[353845043,1740090635282,-500.0,0.00013698,2]
[353845044,1740090635291,-500.0,0.00013698,2]
[353845045,1740090635300,-4821.98,0.00013698,2]
[353845046,1740090635310,-505.98,0.00013698,2]
[353845047,1740090635319,-500.0,0.00013698,2]
[353845048,1740090635328,-18019.29,0.00013698,2]
[353845049,1740090635337,-500.0,0.00013698,2]
[353845050,1740090635346,-441.83645634,0.00013698,2]
[353845051,1740090635355,-1994.66,0.00013698,2]
[353845052,1740090635365,-500.0,0.00013698,2]
[353845053,1740090635374,-500.0,0.00013698,2]
[353845054,1740090635384,-500.0,0.00013698,2]
[353845055,1740090635393,-1067.52,0.00013698,2]
[353845056,1740090635403,-418.73119519,0.00013698,2]
[353845057,1740090635412,-1563.15,0.00013698,2]
[353845058,1740090635421,-1405.27,0.00013698,2]
[353845059,1740090635431,-500.0,0.00013698,2]
[353845060,1740090635441,-520.8,0.00013698,2]
[353845061,1740090635455,-500.0,0.00013698,2]
[353845062,1740090635464,-1414.84,0.00013698,2]
[353845063,1740090635474,-500.0,0.00013698,2]
[353845064,1740090635483,-500.0,0.00013698,2]
[353845065,1740090635493,-500.0,0.00013698,2]
[353845066,1740090635502,-3295.6,0.00013698,2]
[353845067,1740090635511,-1500.96,0.00013698,2]
[353845068,1740090635522,-1990.15,0.00013698,2]
[353845069,1740090635531,-51334.38,0.00013698,2]
[353845070,1740090635541,-500.0,0.00013698,2]
[353845071,1740090635550,-500.0,0.00013698,2]
[353845072,1740090635559,-500.95300771,0.00013698,2]
[353845073,1740090635568,-4539.86,0.00013698,2]
[353845074,1740090635577,-500.0,0.00013698,2]
[353845075,1740090635587,-2545.96,0.00013698,2]
[353845076,1740090635596,-8961.72,0.00013698,2]
[353845077,1740090635605,-500.0,0.00013698,2]
[353845078,1740090635615,-500.0,0.00013698,2]
[353845079,1740090635624,-500.0,0.00013698,2]
[353845080,1740090635633,-420.08437793,0.00013698,2]
[353845081,1740090635643,-625.69,0.00013698,2]
[353845082,1740090635652,-500.0,0.00013698,2]
[353845083,1740090635661,-1696.61,0.00013698,2]
[353845084,1740090635671,-500.0,0.00013698,2]
[353845085,1740090635680,-500.0,0.00013698,2]
[353845086,1740090635689,-500.0,0.00013698,2]
[353845087,1740090635698,-500.0,0.00013698,2]
[353845088,1740090635707,-500.0,0.00013698,2]
[353845089,1740090635717,-756.78,0.00013698,2]
[353845090,1740090635726,-500.0,0.00013698,2]
[353845091,1740090635735,-557.68,0.00013698,2]
[353845092,1740090635744,-4312.39,0.00013698,2]
[353845093,1740090635754,-500.0,0.00013698,2]
[353845094,1740090635763,-500.0,0.00013698,2]
[353845095,1740090635772,-504.71986521,0.00013698,2]
[353845096,1740090635782,-500.0,0.00013698,2]
[353845097,1740090635793,-2534.31,0.00013698,2]
[353845098,1740090635802,-500.0,0.00013698,2]
[353845099,1740090635812,-4521.33,0.00013698,2]
[353845100,1740090635821,-1287.77,0.00013698,2]
[353845101,1740090635831,-1731.36,0.00013698,2]
[353845102,1740090635840,-500.0,0.00013698,2]
[353845103,1740090635850,-657.91,0.00013698,2]
[353845104,1740090635859,-1146.52,0.00013698,2]
[353845105,1740090635868,-843.04,0.00013698,2]
[353845106,1740090635878,-500.0,0.00013698,2]
[353845107,1740090635887,-673.36,0.00013698,2]
[353845108,1740090635896,-1414.86,0.00013698,2]
[353845109,1740090635905,-500.0,0.00013698,2]
[353845110,1740090635915,-707.77,0.00013698,2]
[353845111,1740090635924,-500.0,0.00013698,2]
[353845112,1740090635934,-500.0,0.00013698,2]
[353845113,1740090635944,-2455.78,0.00013698,2]
[353845114,1740090635953,-534.32558632,0.00013698,2]
[353845115,1740090635963,-815.13,0.00013698,2]
[353845116,1740090635972,-500.0,0.00013698,2]
[353845117,1740090635982,-500.0,0.00013698,2]
[353845118,1740090635991,-500.0,0.00013698,2]
[353845119,1740090636001,-2735.62,0.00013698,2]
[353845120,1740090636010,-500.0,0.00013698,2]
[353845121,1740090636020,-500.0,0.00013698,2]
[353845122,1740090636029,-159.96322101,0.00013698,2]
[353845123,1740090636038,-500.0,0.00013698,2]
[353845124,1740090636048,-500.0,0.00013698,2]
[353845125,1740090636057,-500.0,0.00013698,2]
[353845126,1740090636067,-755.62,0.00013698,2]
[353845127,1740090636077,-500.0,0.00013698,2]
[353845128,1740090636086,-500.0,0.00013698,2]
[353845129,1740090636095,-500.0,0.00013698,2]
[353845130,1740090636105,-500.0,0.00013698,2]
[353845131,1740090636114,-500.0,0.00013698,2]
[353845132,1740090636123,-22265.86,0.00013698,2]
[353845133,1740090636132,-1079.07,0.00013698,2]
[353845134,1740090636142,-7600.2,0.00013698,2]
[353845135,1740090636151,-500.0,0.00013698,2]
[353845136,1740090636161,-500.0,0.00013698,2]
[353845137,1740090636170,-500.0,0.00013698,2]
[353845138,1740090636179,-2283.23,0.00013698,2]
[353845139,1740090636189,-2745.46,0.00013698,2]
[353845140,1740090636198,-2549.9,0.00013698,2]
[353845141,1740090636207,-358.04093586,0.00013698,2]
[353845142,1740090636316,-1105.43,0.00013698,2]
[353845143,1740090636326,-500.0,0.00013698,2]
[353845144,1740090636335,-787.94,0.00013698,2]
[353845145,1740090636344,-500.0,0.00013698,2]
[353845146,1740090636354,-657.98,0.00013698,2]
[353845147,1740090636363,-570.04,0.00013698,2]
[353845148,1740090636372,-500.0,0.00013698,2]
[353845149,1740090636381,-500.0,0.00013698,2]
[353845150,1740090636390,-500.0,0.00013698,2]
[353845151,1740090636399,-500.0,0.00013698,2]
[353845152,1740090636408,-505.8652231,0.00013698,2]
[353845153,1740090636418,-503.71,0.00013698,2]
[353845154,1740090636427,-2536.41,0.00013698,2]
[353845155,1740090636436,-8438.89,0.00013698,2]
[353845156,1740090636448,-500.0,0.00013698,2]
[353845157,1740090636461,-500.0,0.00013698,2]
[353845158,1740090636470,-3897.63,0.00013698,2]
[353845159,1740090636479,-744.67164941,0.00013706,2]
[353845160,1740090636488,-202.35157457,0.00013779,2]
[353845161,1740090636499,-500.0,0.00013779,2]
[353845162,1740090636508,-500.0,0.00013779,2]
[353845163,1740090636518,-477.93209861,0.00013779,2]
[353845164,1740090636527,-500.0,0.0001378,2]
[353845165,1740090636536,-500.0,0.0001378,2]
[353845166,1740090636547,-244.1803252,0.0001378,2]
[353845167,1740090636556,-606.17,0.0001378,2]
[353845168,1740090636565,-500.0,0.0001378,2]
[353845169,1740090636575,-500.0,0.0001378,2]
[353845170,1740090636585,-500.0,0.0001378,2]
[353845171,1740090636594,-500.0,0.0001378,2]
[353845172,1740090636603,-515.30441541,0.0001378,2]
[353845173,1740090636613,-500.0,0.0001378,2]